[Event "Caplin Hastings Masters 2023-24"]
[Site "Hastings"]
[Date "2024.01.03"]
[Round "7.2"]
[White "Sulskis, Sarunas"]
[Black "Royal, Shreyas"]
[Result "1/2-1/2"]
[ECO "C78"]
[WhiteElo "2490"]
[BlackElo "2438"]
[Annotator "TA"]
[PlyCount "87"]
[EventDate "2023.12.18"]
[EventType "swiss"]
[EventCountry "ENG"]
[SourceTitle "playchess.com"]
[Source "ChessBase"]
[SourceQuality "1"]
[TimeControl "40/6000+30:3000+30"]

{[%evp 15,87,21,17,15,8,9,23,22,26,10,14,0,0,0,0,0,0,0,-8,-8,-2,-51,0,0,7,9,32,25,27,25,23,28,50,39,39,36,39,32,35,31,35,8,20,0,0,0,0,0,0,0,0,0,0,0,0,0,0,0,0,0,0,0,0,0,0,0,0,0,0,0,0,0,0,0]} 1. e4 {[%emt 0:00:06]} e5 {[%emt 0:00:45]} 2. Nf3 {[%emt 0:00:25]} Nc6 {[%emt 0:00:09]} 3. Bb5 {[%emt 0:00:56]} a6 {[%emt 0:00:05]} 4. Ba4 {[%emt 0:00:04]} Nf6 {[%emt 0:00:08]} 5. O-O {[%emt 0:00:34]} b5 {[%emt 0:00:04]} 6. Bb3 {[%emt 0:00:04]} Bc5 {[%emt 0:00:06]} 7. a4 {[%emt 0:07:33]} Rb8 {[%emt 0:00:45]} 8. axb5 {[%emt 0:04:45]} axb5 {[%emt 0:00:06] [#]} 9. Nxe5 $1 {[%emt 0:00:05][%mdl 64] Remove Defender, Deflection. C78: Ruy Lopez: Archangelsk and Möller Defences.} Nxe5 {[%emt 0:00:20]} 10. d4 {[%emt 0:00:06]} Bxd4 {[%emt 0:00:06]} 11. Qxd4 {[%emt 0:00:04] White has an edge.} d6 {[%emt 0:00:07]} 12. f4 {[%emt 0:05:04]} (12. Bf4 $5 {[%cal Rf4e5]}) 12... Nc6 {[%emt 0:00:10]} 13. Qc3 {[%emt 0:09:45]} Ne7 {[%emt 0:00:27]} 14. Qd3 {[%emt 0:10:32]} O-O {[%emt 0:00:41]} 15. Nc3 {[%emt 0:01:23]} c5 {[%emt 0:02:22] Strongly threatening ...c4.} 16. Nxb5 {[%emt 0:05:19]} Nxe4 {[%emt 0:00:07][%mdl 64] [#] Deflection} 17. c4 $146 {[%emt 0:05:30]} ({Predecessor:} 17. Qxe4 Rxb5 18. Ra7 Bd7 19. f5 Rb4 20. Qe1 Nxf5 21. Bd2 Rxb3 22. cxb3 Be6 23. Bc3 {0-1 Puranik,A (2603)-Arjun,K (2529) MPL Indian Chess Tour N3 rapid 2022 (14)}) 17... f5 {[%emt 0:11:46]} 18. Bd1 {[%emt 0:07:56]} (18. Bc2 $11) 18... Bb7 {[%emt 0:03:48]} ({Black should try} 18... Nc6 $1 $15) 19. Bf3 $11 {[%emt 0:05:36]} d5 {[%emt 0:15:05]} 20. Nc3 {[%emt 0:02:54]} Qb6 {[%emt 0:19:47]} 21. cxd5 {[%emt 0:04:03] aiming for Rd1.} c4+ {[%emt 0:03:10]} 22. Qe3 {[%emt 0:01:08]} Qxe3+ {[%emt 0:02:13]} 23. Bxe3 {[%emt 0:00:07][%cal Bc1e3,Be3d4,Bd4e5][%mdl 32]} Nxd5 {[%emt 0:00:44]} 24. Nxd5 {[%emt 0:02:58]} Bxd5 {[%emt 0:00:07]} 25. Rfd1 {[%emt 0:00:44]} Rfd8 {[%emt 0:09:04]} 26. Bd4 {[%emt 0:06:03]} Rd7 {[%emt 0:00:15]} 27. Be5 {[%emt 0:06:06] This pair of bishops is nice.} Rbd8 {[%emt 0:00:35]} 28. g4 {[%emt 0:06:49]} Nd2 {[%emt 0:07:57] The position is equal.} 29. Bxd5+ {[%emt 0:07:31]} (29. Rxd2 {simplifies} Bxf3 30. Rxd7 Rxd7 31. gxf5 Be4 32. f6) 29... Rxd5 {[%emt 0:00:06]} 30. Kg2 {[%emt 0:00:12] Prevents Nf3} fxg4 {[%emt 0:01:09]} 31. Ra7 {[%emt 0:00:28]} Nf3 {[%emt 0:01:05]} 32. Rxg7+ {[%emt 0:02:08]} Kf8 {[%emt 0:01:14]} 33. Rxd5 {[%emt 0:00:10]} Rxd5 {[%emt 0:00:03]} 34. Rxh7 {[%emt 0:01:21] Black must now prevent Bc3.} Nxe5 {[%emt 0:00:32]} 35. fxe5 {[%emt 0:00:10]} Rxe5 {[%emt 0:00:06][%mdl 4096] Endgame KR-KR} 36. Rb7 {[%emt 0:01:28]} Re3 {[%emt 0:00:06]} 37. Rb4 {[%emt 0:00:24]} c3 {[%emt 0:00:39]} 38. bxc3 {[%emt 0:00:45]} Rxc3 {[%emt 0:00:06]} 39. Rxg4 {[%emt 0:00:04]} Rc7 {[%emt 0:00:04]} 40. Kg3 {[%emt 0:00:16]} Rg7 {[%emt 0:00:06]} 41. h3 $1 {[%emt 0:50:12]} Kg8 {[%emt 0:50:03]} 42. Kf4 {[%emt 0:00:26]} Kh7 {[%emt 0:00:05]} 43. Rxg7+ {[%emt 0:00:17]} Kxg7 {[%emt 0:00:04]} 44. Kg5 {[%emt 0:00:05] Weighted Error Value: White=0.05 (flawless) /Black=0.05 (flawless)} 1/2-1/2

[Event "Caplin Hastings Masters 2023-24"]
[Site "Hastings"]
[Date "2024.01.03"]
[Round "7.3"]
[White "Lagarde, Maxime"]
[Black "Jacobson, Brandon"]
[Result "0-1"]
[ECO "C78"]
[WhiteElo "2640"]
[BlackElo "2538"]
[Annotator "RC"]
[PlyCount "70"]
[EventDate "2023.12.18"]
[EventType "swiss"]
[EventCountry "ENG"]
[SourceTitle "playchess.com"]
[Source "ChessBase"]
[SourceQuality "1"]
[TimeControl "40/6000+30:3000+30"]

1. e4 {[%emt 0:00:02]} e5 {[%emt 0:00:13]} 2. Nf3 {[%emt 0:00:03]} Nc6 {[%emt 0:00:04]} 3. Bb5 {[%emt 0:00:03]} a6 {[%emt 0:00:25]} 4. Ba4 {[%emt 0:00:05]} Nf6 {[%emt 0:00:43]} 5. O-O {[%emt 0:00:06]} Bc5 {[%emt 0:01:00]} 6. c3 {[%emt 0:00:48]} b5 {[%emt 0:00:10]} 7. Bb3 {[%emt 0:00:05]} d6 {[%emt 0:00:10]} 8. a4 {[%emt 0:04:26]} Bb7 {[%emt 0:00:33]} 9. d4 {[%emt 0:02:20]} Bb6 {[%emt 0:00:12]} 10. Re1 {[%emt 0:05:44]} Ne7 {[%emt 0:00:21]} 11. a5 {[%emt 0:20:02]} Ba7 {[%emt 0:00:16]} 12. c4 {[%emt 0:01:34]} bxc4 {[%emt 0:26:01]} 13. Ba4+ {[%emt 0:08:49]} Bc6 {[%emt 0:02:56]} 14. Bg5 {[%emt 0:08:18]} Qd7 {[%emt 0:23:36]} 15. Nc3 {[%emt 0:10:50]} Rb8 {[%emt 0:10:18]} 16. h3 {[%emt 0:06:22]} Bxa4 {[%emt 0:15:37]} 17. Rxa4 {[%emt 0:00:16]} Qe6 {[%emt 0:00:05]} 18. Nd5 {[%emt 0:18:13]} Nexd5 {[%emt 0:11:07]} 19. exd5 {[%emt 0:00:29]} Qxd5 {[%emt 0:00:05]} 20. Qc2 {[%emt 0:15:44]} Bxd4 {[%emt 0:02:17]} 21. Nxd4 {[%emt 0:01:56]} Qxd4 {[%emt 0:00:05]} 22. Rxc4 {[%emt 0:00:08]} Qxb2 {[%emt 0:03:09]} 23. Qf5 {[%emt 0:00:26]} Nd5 {[%emt 0:02:09]} 24. Rg4 {[%emt 0:03:21]} Qb5 {[%emt 0:05:07]} 25. Bd2 {[%emt 0:01:00]} g6 {[%emt 0:00:54]} 26. Qg5 {[%emt 0:00:41]} f6 {[%emt 0:03:25]} 27. Qh6 {[%emt 0:00:03]} Kf7 {[%emt 0:00:02]} 28. f4 {[%emt 0:00:27]} Qd3 {[%emt 0:01:53]} 29. fxe5 {[%emt 0:00:19]} dxe5 {[%emt 0:00:02]} 30. Kh2 {[%emt 0:01:01]} Ne7 {[%emt 0:00:51]} 31. Bb4 {[%emt 0:00:28]} c5 {[%emt 0:00:56]} 32. Bxc5 {[%emt 0:00:38]} Nf5 {[%emt 0:00:02]} 33. Qc1 {[%emt 0:00:06]} Rbc8 {[%emt 0:00:47]} 34. Rc4 {[%emt 0:00:45]} Rhd8 {[%emt 0:00:34]} 35. Ree4 {[%emt 0:00:49]} Rxc5 {[%emt 0:00:27]} 0-1

[Event "Caplin Hastings Masters 2023-24"]
[Site "Hastings"]
[Date "2024.01.03"]
[Round "7.4"]
[White "Edouard, Romain"]
[Black "Sengupta, Deep"]
[Result "1/2-1/2"]
[ECO "A34"]
[WhiteElo "2527"]
[BlackElo "2501"]
[Annotator "TA"]
[PlyCount "60"]
[EventDate "2023.12.18"]
[EventType "swiss"]
[EventCountry "ENG"]
[SourceTitle "playchess.com"]
[Source "ChessBase"]
[SourceQuality "1"]
[TimeControl "40/6000+30:3000+30"]

{[%evp 20,60,0,0,0,0,16,16,20,0,0,-31,-22,-17,0,0,-1,-64,11,-4,32,31,77,81,93,54,93,90,91,77,83,43,41,-9,0,0,0,0,0,0,0,-2,-2]} 1. Nf3 {[%emt 0:00:02]} Nf6 {[%emt 0:00:20]} 2. g3 {[%emt 0:00:05]} c5 {[%emt 0:00:13]} 3. Bg2 {[%emt 0:01:40]} Nc6 {[%emt 0:00:09]} 4. c4 {[%emt 0:03:07]} d5 {[%emt 0:00:51]} 5. cxd5 {[%emt 0:00:06]} Nxd5 {[%emt 0:00:05]} 6. Nc3 {[%emt 0:00:03]} Nc7 {[%emt 0:00:08]} 7. O-O {[%emt 0:00:26]} e5 {[%emt 0:00:15]} 8. d3 {[%emt 0:00:17]} Be7 {[%emt 0:00:27]} 9. Nd2 {[%emt 0:00:06]} Bd7 {[%emt 0:02:44]} 10. Nc4 {[%emt 0:00:16]} f6 {[%emt 0:00:29]} 11. f4 {[%emt 0:01:56]} b5 $1 {[%emt 0:04:13] A34: Symmetrical English: 2 Nc3, lines with ...d5.} 12. Ne3 {[%emt 0:02:26]} Rb8 {[%emt 0:08:02]} (12... exf4 $5 13. Rxf4 Rb8 $11) 13. Ned5 {[%emt 0:03:34]} O-O {[%emt 0:02:13]} 14. Nxc7 {[%emt 0:00:09]} Qxc7 {[%emt 0:00:05] [#]} 15. f5 $146 {[%emt 0:00:25]} ({Predecessor:} 15. Nd5 Qd6 16. Nxe7+ Qxe7 17. Be3 exf4 18. Bxf4 Rb6 19. Qd2 Bg4 20. e4 Rd8 21. h3 {0-1 Lindenmaier,R-Palkovi,J (2405) Oberliga Wuerttemberg 9293 1992}) 15... Nd4 {[%emt 0:14:48]} 16. g4 {[%emt 0:00:19]} Bc6 {[%emt 0:00:28]} 17. Ne4 {[%emt 0:03:42]} Ba8 {[%emt 0:00:26]} 18. Be3 {[%emt 0:01:36]} (18. Bd2 $11) 18... Qa5 {[%emt 0:08:01]} (18... c4 $15) 19. a4 {[%emt 0:12:04]} Qb4 {[%emt 0:38:18]} 20. axb5 {[%emt 0:06:06]} Qxb2 {[%emt 0:00:13]} (20... Qxb5 $14 21. Rxa7 Rfe8) 21. Rxa7 $16 {[%emt 0:04:23]} Rfe8 {[%emt 0:00:28] [#]} 22. Bxd4 $1 {[%emt 0:26:05]} Qxd4+ {[%emt 0:01:07] Black is weak on the light squares} 23. Kh1 {[%emt 0:00:07] White is much more active.} Rxb5 {[%emt 0:02:11]} 24. Qa1 {[%emt 0:15:16]} (24. Nxf6+ {simplifies} Bxf6 25. Bxa8 Reb8 26. Bf3) 24... Rbb8 {[%emt 0:03:37]} 25. Qa6 {[%emt 0:07:29]} (25. Ra4 {simplifies} Qxa1 26. Rfxa1 Bxe4 27. Bxe4 Rb4 28. Kg2) 25... Kh8 $1 {[%emt 0:11:18][%cal Oc5c4] [#]} 26. g5 {[%emt 0:08:45]} Bxe4 {[%emt 0:01:16] The position is equal.} 27. Bxe4 {[%emt 0:00:07] aiming for Qe6.} c4 {[%emt 0:00:27]} 28. gxf6 {[%emt 0:09:04]} Bxf6 {[%emt 0:00:20]} 29. Rf7 {[%emt 0:00:05] Rxf6 is the strong threat.} cxd3 {[%emt 0:01:15]} 30. exd3 {[%emt 0:00:03] Threatens to win with Rxf6.} Rf8 {[%emt 0:00:42] Weighted Error Value: White=0.14 (very precise) /Black=0.16 (very precise)} 1/2-1/2

[Event "Caplin Hastings Masters 2023-24"]
[Site "Hastings"]
[Date "2024.01.03"]
[Round "7.5"]
[White "Petrov, Martin"]
[Black "Gasanov, Eldar"]
[Result "1/2-1/2"]
[ECO "B67"]
[WhiteElo "2501"]
[BlackElo "2487"]
[Annotator "TA"]
[PlyCount "85"]
[EventDate "2023.12.18"]
[EventType "swiss"]
[EventCountry "ENG"]
[SourceTitle "playchess.com"]
[Source "ChessBase"]
[SourceQuality "1"]
[TimeControl "40/6000+30:3000+30"]

{[%evp 21,85,20,26,35,28,26,58,56,69,56,104,95,95,95,104,87,75,72,94,112,109,40,40,39,40,24,19,14,29,39,41,37,31,30,60,61,100,25,102,88,112,52,64,0,0,0,0,0,0,0,0,0,0,0,0,0,0,0,0,0,0,0,4,0,0,0]} 1. e4 {[%emt 0:00:06]} c5 {[%emt 0:00:41]} 2. Nf3 {[%emt 0:00:10]} Nc6 {[%emt 0:00:26]} 3. d4 {[%emt 0:00:07]} cxd4 {[%emt 0:00:11]} 4. Nxd4 {[%emt 0:00:07]} Nf6 {[%emt 0:00:13]} 5. Nc3 {[%emt 0:00:11]} d6 {[%emt 0:00:14]} 6. Bg5 {[%emt 0:00:07]} e6 {[%emt 0:00:29]} 7. Qd2 {[%emt 0:01:36]} a6 {[%emt 0:00:41]} 8. O-O-O {[%emt 0:00:24]} Be7 {[%emt 0:00:31]} 9. Kb1 {[%emt 0:01:07]} Bd7 {[%emt 0:03:19]} 10. Nxc6 {[%emt 0:03:17]} Bxc6 {[%emt 0:04:36]} 11. f3 {[%emt 0:00:06][%cal Bf2f3,Bf3f4][%mdl 32]} b5 {[%emt 0:09:26]} 12. h4 {[%emt 0:00:22] B67: Sicilian: Richter-Rauzer: 7...a6 8 0-0-0 Bd7, lines without 9 f4 Be7.} h6 {[%emt 0:06:37] The modern move.} 13. Be3 {[%emt 0:01:45]} d5 {[%emt 0:07:22]} 14. e5 $1 {[%emt 0:04:35] White is slightly better.} Nd7 {[%emt 0:00:53][%csl LRe5,LRh4]} 15. f4 {[%emt 0:00:19]} Nc5 {[%emt 0:18:04] [#]} (15... Qc7 $14) 16. Qf2 $146 {[%emt 0:08:55]} ({Predecessor:} 16. Ne2 Ne4 17. Qe1 h5 18. Nd4 Qc7 19. f5 exf5 20. Nxf5 Qxe5 21. Nxe7 Qxe7 22. Bd4 {½-½ Samani,Y (2349)-Nevednichy,V (2447) SRB-chT 2nd League 2023 (8.1)}) 16... b4 {[%emt 0:05:28]} 17. Bxc5 {[%emt 0:37:21]} bxc3 {[%emt 0:03:21]} 18. Bb6 {[%emt 0:02:44]} (18. bxc3 Qa5 19. Bxe7 Kxe7 $15) 18... Qd7 {[%emt 0:11:30]} 19. b3 {[%emt 0:00:05][%cal Of4f5]} ({But not} 19. bxc3 $6 Rb8 20. Kc1 Ba4 $15) 19... Bb5 {[%emt 0:00:45]} 20. Rh3 {[%emt 0:02:39]} Rc8 {[%emt 0:02:47]} 21. Ba5 {[%emt 0:01:56]} (21. Bd4 $16) 21... Bxf1 $14 {[%emt 0:01:34]} 22. Qxf1 {[%emt 0:04:16]} Qb5 {[%emt 0:01:42]} 23. Qxb5+ {[%emt 0:21:06]} (23. Bxc3 $5 Qxf1 24. Rxf1 $14) 23... axb5 {[%emt 0:00:07]} 24. Rd4 {[%emt 0:00:04]} Kd7 {[%emt 0:01:31]} 25. Bb4 {[%emt 0:00:53]} Bc5 {[%emt 0:14:00]} 26. Bxc5 {[%emt 0:00:10]} Rxc5 {[%emt 0:00:01][%mdl 4096] Endgame KRR-KRR} 27. a4 {[%emt 0:00:31]} Rb8 {[%emt 0:07:01]} 28. Rb4 {[%emt 0:01:28]} h5 {[%emt 0:00:56]} 29. axb5 {[%emt 0:05:33]} (29. Rg3 $16) 29... Kc7 {[%emt 0:00:52]} (29... Rcxb5 $11 30. Rxb5 Rxb5) 30. Rg3 $16 {[%emt 0:00:46]} g6 {[%emt 0:00:59]} 31. Ka2 {[%emt 0:01:03]} (31. Rd3 $16) 31... Kb6 $14 {[%emt 0:02:25]} 32. Ka3 {[%emt 0:00:02]} (32. Ra4 $1 $14) 32... Rbc8 $11 {[%emt 0:02:06] The position is equal.} ({Much less strong is} 32... Rxb5 33. Rxb5+ (33. Rxc3 Ra8+ 34. Ra4 Rba5 $16) 33... Kxb5 34. Rxc3 $16) 33. Ra4 {[%emt 0:03:21]} Kxb5 {[%emt 0:01:31]} 34. Rd3 {[%emt 0:00:11]} Kb6 {[%emt 0:01:15]} 35. Rdd4 {[%emt 0:00:41]} R8c7 {[%emt 0:00:32]} 36. g3 {[%emt 0:02:15]} Ra5 {[%emt 0:01:57]} 37. Rdb4+ {[%emt 0:01:13]} Rb5 {[%emt 0:00:19]} 38. Ra8 {[%emt 0:01:53] [#] Strongly threatening Rb8+.} Kc5 {[%emt 0:00:26]} 39. Rba4 {[%emt 0:00:06]} Rbb7 {[%emt 0:01:21]} 40. R8a5+ {[%emt 0:03:04]} Rb5 {[%emt 0:01:05]} 41. Ra8 {[%emt 0:51:59]} Rbb7 {[%emt 0:03:56]} 42. R8a5+ {[%emt 0:00:00]} Rb5 {[%emt 0:01:00]} 43. Ra8 {[%emt 0:05:54] Weighted Error Value: White=0.12 (very precise) /Black=0.10 (very precise)} 1/2-1/2

[Event "Caplin Hastings Masters 2023-24"]
[Site "Hastings"]
[Date "2024.01.03"]
[Round "7.6"]
[White "Cherniaev, Alexander"]
[Black "Laurent-Paoli, Pierre"]
[Result "0-1"]
[ECO "B22"]
[WhiteElo "2381"]
[BlackElo "2524"]
[Annotator "TA"]
[PlyCount "86"]
[EventDate "2023.12.18"]
[EventType "swiss"]
[EventCountry "ENG"]
[SourceTitle "playchess.com"]
[Source "ChessBase"]
[SourceQuality "1"]
[TimeControl "40/6000+30:3000+30"]

{[%evp 13,86,0,0,4,0,0,0,0,0,-4,0,0,0,0,0,7,22,3,13,17,3,0,50,0,29,0,0,0,0,-27,-24,-43,-38,-42,-43,-35,-8,-19,-31,-168,-155,-169,-162,-162,-163,-185,0,0,0,-135,-140,-146,-91,-108,-92,-202,-177,-172,-174,-217,-125,-208,-82,-156,-152,-178,-204,-232,-189,-292,-290,-295,-239,-311,-315]} 1. e4 {[%emt 0:00:09][%cal Be2e4,Be4e5][%mdl 32]} c5 {[%emt 0:04:58]} 2. c3 {[%emt 0:00:28]} Nf6 {[%emt 0:01:19]} 3. e5 {[%emt 0:00:09]} Nd5 {[%emt 0:00:04]} 4. Nf3 {[%emt 0:00:21]} e6 {[%emt 0:00:47]} 5. Bc4 {[%emt 0:00:33]} d6 {[%emt 0:00:29]} 6. d4 {[%emt 0:00:08]} cxd4 {[%emt 0:00:27]} 7. cxd4 {[%emt 0:00:08]} Be7 {[%emt 0:00:08]} 8. O-O {[%emt 0:00:10] B22: Sicilian: 2 c3.} O-O {[%emt 0:00:20]} 9. Bd2 {[%emt 0:00:05]} dxe5 {[%emt 0:08:41]} 10. dxe5 {[%emt 0:03:04] The position is equal.} Bd7 {[%emt 0:01:48]} 11. Nc3 {[%emt 0:02:03]} Bc6 {[%emt 0:11:26]} 12. Qe2 {[%emt 0:04:12]} Nb6 {[%emt 0:13:05]} 13. Bd3 {[%emt 0:00:40]} N8d7 {[%emt 0:02:56] [#]} 14. Ne4 $146 {[%emt 0:21:19]} ({Predecessor:} 14. Nd4 Nxe5 15. Qxe5 Bf6 16. Qh5 g6 17. Nxc6 Qxd3 18. Ne5 Qd8 19. Qe2 {½-½ Jaracz,P (2510)-Plischki,S (2421) Jirasek Memorial 25th 2013 (6)}) 14... Qc7 {[%emt 0:08:31]} 15. Bf4 $1 {[%emt 0:03:12]} Nd5 {[%emt 0:02:49]} 16. Bg3 {[%emt 0:02:57]} Qb6 {[%emt 0:04:22]} 17. a3 {[%emt 0:05:33]} a5 {[%emt 0:07:52]} (17... a6 $11) 18. h4 {[%emt 0:00:52]} (18. Rfd1 $14) 18... h6 {[%emt 0:03:59]} 19. Rad1 {[%emt 0:10:53]} Nc5 {[%emt 0:04:23]} 20. Nxc5 {[%emt 0:02:27][%mdl 64] Remove Defender} Bxc5 {[%emt 0:00:12]} 21. h5 {[%emt 0:13:50]} Ne7 {[%emt 0:03:51]} 22. Nh4 {[%emt 0:00:10]} Rad8 {[%emt 0:01:57][%cal Od8d3]} 23. Bb1 {[%emt 0:01:23]} Qb3 {[%emt 0:00:55]} 24. Kh2 {[%emt 0:00:08]} Rd4 {[%emt 0:11:56]} 25. Rxd4 {[%emt 0:12:39]} Bxd4 {[%emt 0:00:01]} 26. Rd1 {[%emt 0:03:11]} (26. Bc2 $1 $15 Qb5 27. Qxb5 Bxb5 28. Rd1) 26... Bxb2 $19 {[%emt 0:02:26]} 27. Rd3 {[%emt 0:01:57]} Qb5 {[%emt 0:01:07]} 28. a4 {[%emt 0:01:16]} Qb4 {[%emt 0:00:44]} ({But not} 28... Qxa4 29. Qxb2 Qg4 30. Rd4 Qxh5 31. Bc2 $18) 29. Bc2 {[%emt 0:02:05] aiming for Rb3.} Bc1 $2 {[%emt 0:07:20]} ({Don't play} 29... Bxa4 30. Bxa4 Qxa4 31. Qxb2 $16) (29... Bc3 $19 {...Nd5 would be deadly.} 30. f4 Rc8) 30. Rd1 $11 {[%emt 0:03:12] Repels Nd5. Qd3 is the strong threat.} Qa3 {[%emt 0:03:09]} 31. Bb1 {[%emt 0:03:19]} (31. Rxc1 $1 $11 {was the only way to keep the balance.} Qxc1 32. Qd3) 31... Qc3 $1 $17 {[%emt 0:01:55]} ({Don't take} 31... Bxa4 32. Qe4 g6 33. hxg6 fxg6 34. Rd6 $18) 32. Bc2 {[%emt 0:04:25]} Bg5 {[%emt 0:00:31] Black is more active.} (32... Ba3 $142 $1 33. Rd3 Qc4) 33. Nf3 {[%emt 0:00:11] [#]} Nf5 {[%emt 0:00:48] Dodges Nd4} 34. Rd3 {[%emt 0:04:18]} (34. Bxf5 $17 {is a better defense.} exf5 35. Nxg5 hxg5 36. h6) 34... Qc4 {[%emt 0:00:01]} 35. Nxg5 {[%emt 0:00:27]} hxg5 {[%emt 0:00:26]} 36. Qd2 {[%emt 0:00:05]} Qg4 {[%emt 0:01:36]} (36... Bxa4 $19 37. Bxa4 Qxa4 38. Qxg5 Qc2) 37. Bd1 {[%emt 0:00:12] [#]} (37. Rd8 $17 {was necessary.}) 37... Nxg3 {[%emt 0:00:23]} (37... Qe4 $1 $19 {[%csl Gc6][%cal Re4g2] and Black stays clearly on top.} 38. f3 Nxg3 39. fxe4 Nf1+ 40. Kh3 Nxd2 41. Rxd2 Kh7) 38. fxg3 {[%emt 0:05:46]} (38. Rxg3 $142 Qf4 39. Qxf4 gxf4 40. Rd3) 38... Qf5 $40 {[%emt 0:00:15][%mdl 128] Black wants a kill.} 39. Re3 {[%emt 0:01:10]} g4 {[%emt 0:00:25]} 40. Kg1 {[%emt 0:00:20]} Qxh5 {[%emt 0:00:44]} 41. Qd4 {[%emt 0:50:13]} (41. Qxa5 $142 Qg5 42. Qc3) 41... Qg5 $19 {[%emt 0:07:59] Hoping for ...Rd8.} 42. Rd3 {[%emt 0:00:00]} Bd5 {[%emt 0:05:49]} 43. Bxg4 {[%emt 0:00:00]} Rc8 {[%emt 0:01:46] Weighted Error Value: White=0.28 (precise) /Black=0.26 (precise)} 0-1